{"text_format":"1","workbook":"xlsx","n_sheets":4,"sheets":["Degree Plan","Recommendations","Instructions","Lists"],"not_rendered":{"charts":0,"images":0,"macros":1,"external_links":0,"defined_names":33,"comments":0,"pivot_tables":0},"unopened":[],"bounds":{"document_bytes":16777216,"sheet_cells":100000,"rows_first":2000,"rows_last":500,"rows_between":2000,"halvings":0,"cell_chars":16384,"cell_head_chars":4096},"cells_cut":0,"cells_raw":0,"read":"whole","date_system":"1900"}

{"sheet":"Degree Plan","index":0,"n_rows":84,"n_cols":44,"rows_kept":84,"cut":false,"hidden":false,"merged":[[76,1,76,2],[69,1,69,2],[43,1,43,6],[35,1,35,3],[75,1,75,2],[61,1,61,6],[45,1,45,3],[37,1,37,2],[30,1,30,2],[24,1,24,6],[0,1,0,4],[0,7,0,16],[0,5,0,6],[25,13,26,13],[25,14,25,16],[2,6,2,7],[26,1,26,3],[6,9,6,12],[7,9,7,12],[15,9,15,12],[16,9,16,12],[25,9,25,12],[1,2,1,4],[1,6,1,7],[1,8,1,16],[15,14,15,16],[6,14,6,16],[15,13,16,13],[6,13,7,13],[3,1,3,6],[7,1,7,3],[16,1,16,3],[2,1,2,2],[2,8,2,16],[71,14,71,16],[62,14,62,16],[62,13,63,13],[71,13,72,13],[72,9,72,12],[63,9,63,12],[71,9,71,12],[62,9,62,12],[57,14,57,16],[34,9,34,12],[34,14,34,16],[35,9,35,12],[44,9,44,12],[45,9,45,12],[34,13,35,13],[53,9,53,12],[54,9,54,12],[53,14,53,16],[44,13,45,13],[53,13,54,13],[44,14,44,16],[7,22,7,29],[6,22,6,38],[7,31,7,38],[6,17,6,19],[26,9,26,12]]}
[null,"Bachelor of Science in Civil Engineering",null,null,null,"2018-19",null,{"$f":"_xlfn.CONCAT(\"Expires: 08/01/\",LEFT(F1,4)+7)","v":"Expires: 08/01/2025"},null,null,null,null,null,null,null,null,null,{"$f":"COLUMN()","v":18},{"$f":"COLUMN()","v":19},{"$f":"COLUMN()","v":20},{"$f":"COLUMN()","v":21},{"$f":"COLUMN()","v":22},{"$f":"COLUMN()","v":23},{"$f":"COLUMN()","v":24},{"$f":"COLUMN()","v":25},{"$f":"COLUMN()","v":26},{"$f":"COLUMN()","v":27},{"$f":"COLUMN()","v":28},{"$f":"COLUMN()","v":29},{"$f":"COLUMN()","v":30},{"$f":"COLUMN()","v":31},{"$f":"COLUMN()","v":32},{"$f":"COLUMN()","v":33},{"$f":"COLUMN()","v":34},{"$f":"COLUMN()","v":35},{"$f":"COLUMN()","v":36},{"$f":"COLUMN()","v":37},{"$f":"COLUMN()","v":38},{"$f":"COLUMN()","v":39},{"$f":"COLUMN()","v":40},{"$f":"COLUMN()","v":41},{"$f":"COLUMN()","v":42},{"$f":"COLUMN()","v":43},32]
[null,"Name",null,null,null,"ID",null,null,"If you have questions"]
[null,"Registering",null,"Fall","Credits to Recommend",12,null,null,"civilengineering@utep.edu"]
[null,"FRESHMAN YEAR",null,null,null,null,null,null,null,null,null,null,null,null,null,null,null,null,null,null,null,null,1,2,3,4,5,6,7,8,null,1,2,3,4,5,6,7,8,null,1]
[null,null,null,"Calculus Ready Status","Not Ready to Take Calculus I","Note: Courses for calculus readiness are not part of the degree"]
[]
[null,"1st Semester",null,null,null,null,null,null,null,"Critical",null,null,null,"Prereq Flag","Avail",null,null,"Satisfies",null,null,null,null,"Requirements",null,null,null,null,null,null,null,null,null,null,null,null,null,null,null,null,null,null,null,"Min"]
[null,"Course",null,null,"Prerequisites","Hours","Grade","Status","✓","Path",null,null,null,null,"F","S","Su","Prereq","Credits","All",null,null,"Prerequisites",null,null,null,null,null,null,null,null,"Or Prerequisites",null,null,null,null,null,null,null,null,"Coreq",null,"Credits"]
[1,"CE","1301+","Civil Engineering Fundamentals","MATH1411 (coreq)",3,null,"Not Ready",null,"◎","⦿",null,null,null,null,null,null,{"$f":"CalculusReady=\"Ready to Take Calculus I\"","v":false},{"$f":"TotalCreditsTaken>=AQ9","v":true},{"$f":"AND(R9,S9)","v":false},{"$f":"SUM(F9:F14)","v":17},null,null,null,null,null,null,null,null,null,null,null,null,null,null,null,null,null,null,null,{"$f":"ROW(A10)","v":10}]
[2,"MATH","1411+","Calculus I",null,4,null,"Not Ready",null,"◎","⦿",null,null,null,null,null,null,{"$f":"CalculusReady=\"Ready to Take Calculus I\"","v":false},true,{"$f":"AND(R10,S10)","v":false}]
[3,"PHYS","2320+","Introductory Mechanics","PHYS2120 (coreq)",3,null,"Not Ready",null,"◎","⦿",null,null,null,null,null,null,{"$f":"CalculusReady=\"Ready to Take Calculus I\"","v":false},true,{"$f":"AND(R11,S11)","v":false},null,null,null,null,null,null,null,null,null,null,null,null,null,null,null,null,null,null,null,null,12]
[4,"PHYS","2120+","Intorductory Mechanics Lab","PHYS2320 (coreq)",1,null,"Not Ready",null,null,null,null,null,null,null,null,null,{"$f":"CalculusReady=\"Ready to Take Calculus I\"","v":false},true,{"$f":"AND(R12,S12)","v":false},null,null,null,null,null,null,null,null,null,null,null,null,null,null,null,null,null,null,null,null,11]
[5,"UNV","1301+","Foundation of Engineering",null,3,null,"Can Take","✓",null,null,null,null,null,null,null,null,null,true,{"$f":"AND(R13,S13)","v":true}]
[6,"RWS","1301+","Rhetoric and Composition I",null,3,null,"Can Take","✓",null,null,null,null,null,null,null,null,null,true,true]
[]
[null,"2nd  Semester",null,null,null,null,null,null,null,"Critical",null,null,null,"Prereq Flag","Avail"]
[null,"Course",null,null,"Prerequisites","Hours","Grade","Status","✓","Path",null,null,null,null,"F","S","Su"]
[7,"CE","2315+","Statics","MATH1411 and (CE1301 or PHYS2420)",3,null,"Not Ready",null,"◎","⦿",null,null,null,null,null,null,{"$f":" AND(G10<>\"\",OR(G9<>\"\",G11<>\"\"))","v":false},{"$f":"TotalCreditsTaken>=AQ18","v":true},false,{"$f":"SUM(F18:F23)","v":16},null,{"$f":"ROW(A10)","v":10},null,null,null,null,null,null,null,null,{"$f":"ROW(A9)","v":9},{"$f":"ROW(A11)","v":11}]
[8,"MATH","1312+","Calculus II","MATH1411",3,null,"Not Ready",null,null,null,null,null,null,null,null,null,{"$f":"G10<>\"\"","v":false},true,false,null,null,{"$f":"ROW(A10)","v":10}]
[9,"CHEM","1305+","General Chemistry I","CHEM11105 (coreq)",3,null,"Not Ready",null,null,null,null,null,null,null,null,null,{"$f":"OR(CalculusReady=\"Ready to Take Calculus I\",CalculusReady=\"Will Take Precalculus Next Period\")","v":false},true,false,null,null,null,null,null,null,null,null,null,null,null,null,null,null,null,null,null,null,null,null,{"$f":"ROW(A21)","v":21}]
[10,"CHEM","1105+","Laboratory for General Chemistry I","CHEM1305 (coreq)",1,null,"Not Ready",null,null,null,null,null,null,null,null,null,{"$f":"OR(CalculusReady=\"Ready to Take Calculus I\",CalculusReady=\"Will Take Precalculus Next Period\")","v":false},true,false,null,null,null,null,null,null,null,null,null,null,null,null,null,null,null,null,null,null,null,null,{"$f":"ROW(A20)","v":20}]
[11,"CE","1313+","Engineering Measurements",null,3,null,"Not Ready",null,null,null,null,null,null,null,null,null,{"$f":"CalculusReady=\"Ready to Take Calculus I\"","v":false},true,false]
[12,"RWS","1302+","Rhetoric and Composition II","RWS1301",3,null,"Not Ready",null,null,null,null,null,null,null,null,null,{"$f":"G14<>\"\"","v":false},true,false,null,null,{"$f":"ROW(A14)","v":14}]
[]
[null,"SOPHOMORE YEAR"]
[null,"1st Semester",null,null,null,null,null,null,null,"Critical",null,null,null,"Prereq Flag","Avail"]
[null,"Course",null,null,"Prerequisites","Hours","Grade","Status","✓","Path",null,null,null,null,"F","S","Su"]
[13,"CE","2334+","Mechanics of Materials","CE2315",3,null,"Not Ready",null,"◎","⦿",null,null,null,null,null,null,{"$f":"G18<>\"\"","v":false},{"$f":"TotalCreditsTaken>=AQ28","v":true},false,{"$f":"SUM(F28:F33)","v":18},null,{"$f":"ROW(A18)","v":18}]
[14,"MATH","2313+","Calculus III","MATH1312",3,null,"Not Ready",null,null,null,null,null,null,null,null,null,{"$f":"G19<>\"\"","v":false},true,false,null,null,{"$f":"ROW(A19)","v":19}]
[15,"CE","2375+","Intoduction to Fluid Mechanics","CE2315",3,null,"Not Ready",null,null,null,null,null,null,null,null,null,{"$f":"G18<>\"\"","v":false},true,false,null,null,{"$f":"ROW(A18)","v":18}]
[16,null,null,"Science Elective (3 hrs towards degree)","See electives prerequisites",3,null,"Not Ready",null,null,null,null,null,null,null,null,null,{"$f":"AND(G10<>\"\",OR(G11<>\"\",G19<>\"\",AND(G20<>\"\",G21<>\"\")))","v":false},true,false,null,null,{"$f":"ROW(A10)","v":10},null,null,null,null,null,null,null,null,{"$f":"ROW(A11)","v":11},{"$f":"ROW(A19)","v":19},{"$f":"ROW(A20)","v":20},{"$f":"ROW(A21)","v":21}]
[17,"CS","1320+","Computer Programming Sci/Engr","MATH1411",3,null,"Not Ready",null,null,null,null,null,null,null,null,null,{"$f":"G10<>\"\"","v":false},true,false,null,null,{"$f":"ROW(A10)","v":10}]
[18,"HIST","1301+","History of US to 1865",null,3,null,"Can Take","✓",null,null,null,null,null,null,null,null,null,true,true]
[]
[null,"2nd  Semester",null,null,null,null,null,null,null,"Critical",null,null,null,"Prereq Flag","Avail"]
[null,"Course",null,null,"Prerequisites","Hours","Grade","Status","✓","Path",null,null,null,null,"F","S","Su"]
[19,"CE","2343+","Structural Analysis","CE2334",3,null,"Not Ready",null,"◎",null,null,null,null,null,null,null,{"$f":"G28<>\"\"","v":false},{"$f":"TotalCreditsTaken>=AQ37","v":true},false,{"$f":"SUM(F37:F41)","v":15},null,{"$f":"ROW(A28)","v":28}]
[20,null,null,"Dynamics Elective","See electives prerequisites",3,null,"Not Ready",null,null,null,null,null,null,null,null,null,{"$f":"OR(AND(G18<>\"\",G19<>\"\"),G29<>\"\")","v":false},true,false,null,null,null,null,null,null,null,null,null,null,null,{"$f":"ROW(A18)","v":18},{"$f":"ROW(A19)","v":19},{"$f":"ROW(A29)","v":29}]
[21,"MATH","2326+","Differential Equations","MATH1312 or MATH2313",3,null,"Not Ready",null,null,null,null,null,null,null,null,null,{"$f":"OR(G19<>\"\",G29<>\"\")","v":false},true,false,null,null,null,null,null,null,null,null,null,null,null,{"$f":"ROW(A19)","v":19},{"$f":"ROW(A29)","v":29}]
[22,"CE","2335+","Geological Engineering (GEOL 3321+)",null,3,null,"Not Ready",null,null,"⦿",null,null,null,null,null,null,null,{"$f":"TotalCreditsTaken>=AQ40","v":false},{"$f":"AND(R40,S40)","v":false},null,null,null,null,null,null,null,null,null,null,null,null,null,null,null,null,null,null,null,null,null,null,21]
[23,"CE","2385+","Environmental Engineering Fundamentals","CHEM1305 and CE2375",3,null,"Not Ready",null,null,null,null,null,null,null,null,null,{"$f":"AND(G20<>\"\",G30<>\"\")","v":false},true,false,null,null,{"$f":"ROW(A20)","v":20},{"$f":"ROW(A30)","v":30}]
[24,"HIST","1302+","History of the US since 1865","HIST1301",3,null,"Not Ready",null,null,null,null,null,null,null,null,null,{"$f":"G33<>\"\"","v":false},{"$f":"TotalCreditsTaken>=AQ42","v":true},{"$f":"AND(R42,S42)","v":false},null,null,{"$f":"ROW(A33)","v":33}]
[]
[null,"JUNIOR YEAR"]
[null,"1st Semester",null,null,null,null,null,null,null,"Critical",null,null,null,"Prereq Flag","Avail"]
[null,"Course",null,null,"Prerequisites","Hours","Grade","Status","✓","Path",null,null,null,null,"F","S","Su"]
[25,"CE","2373+","Engineering Prob. and Stat. Models (IE 3373+)","MATH2313",3,null,"Not Ready",null,null,null,null,null,null,null,null,null,{"$f":"G29<>\"\"","v":false},{"$f":"TotalCreditsTaken>=AQ47","v":true},false,{"$f":"SUM(F47:F52)","v":17},null,{"$f":"ROW(A29)","v":29}]
[26,"CE",3336,"Civil Engineering Materials","CE2334",3,null,"Not Ready",null,null,"⦿",null,null,null,null,null,null,{"$f":"G28<>\"\"","v":false},false,false,null,null,{"$f":"ROW(A28)","v":28},null,null,null,null,null,null,null,null,null,null,null,null,null,null,null,null,null,null,null,50]
[27,"CE",3345,"Design of Concrete Structures","CE2343",3,null,"Not Ready",null,"◎",null,null,null,null,null,null,null,{"$f":"G37<>\"\"","v":false},false,false,null,null,{"$f":"ROW(A37)","v":37},null,null,null,null,null,null,null,null,null,null,null,null,null,null,null,null,null,null,null,50]
[28,"CE","2326+","Economics for Engineers and Scientists",null,3,null,"Not Ready",null,null,null,null,null,null,null,null,null,null,false,false,null,null,null,null,null,null,null,null,null,null,null,null,null,null,null,null,null,null,null,null,null,null,33]
[29,"CE",3456,"Hydrology and Hydraulic Engineering","CE2375",4,null,"Not Ready",null,null,null,null,null,null,null,null,null,{"$f":"G30<>\"\"","v":false},false,false,null,null,{"$f":"ROW(A30)","v":30},null,null,null,null,null,null,null,null,null,null,null,null,null,null,null,null,null,null,null,50]
[30,"CE",4195,"Junior Professional Orientation",null,1,null,"Not Ready",null,null,null,null,null,null,null,null,null,null,false,false,null,null,null,null,null,null,null,null,null,null,null,null,null,null,null,null,null,null,null,null,null,null,60]
[]
[null,"2nd  Semester",null,null,null,null,null,null,null,"Critical",null,null,null,"Prereq Flag","Avail"]
[null,"Course",null,null,"Prerequisites","Hours","Grade","Status","✓","Path",null,null,null,null,"F","S","Su"]
[31,"CE",3348,"Geotechnical Engineering","CE2335 and CE3336",3,null,"Not Ready",null,null,"⦿",null,null,null,null,null,null,{"$f":"AND(G48<>\"\",G40<>\"\")","v":false},{"$f":"TotalCreditsTaken>=AQ56","v":false},false,{"$f":"SUM(F56:F60)","v":15},null,{"$f":"ROW(A40)","v":40},{"$f":"ROW(A48)","v":48},null,null,null,null,null,null,null,null,null,null,null,null,null,null,null,null,null,null,62]
[32,"CE",3361,"Design of Steel Structures","CE2343",3,null,"Not Ready",null,"◎",null,null,null,null,null,null,null,{"$f":"G37<>\"\"","v":false},{"$f":"TotalCreditsTaken>=AQ57","v":false},false,null,null,{"$f":"ROW(A37)","v":37},null,null,null,null,null,null,null,null,null,null,null,null,null,null,null,null,null,null,null,62]
[33,"CE",3334,"Construction Management (Online)",null,3,null,"Not Ready",null,null,null,null,null,null,"Link",null,null,null,{"$f":"TotalCreditsTaken>=AQ58","v":false},false,null,null,null,null,null,null,null,null,null,null,null,null,null,null,null,null,null,null,null,null,null,null,62]
[34,"CE",3342,"Water & Waste Water Engineering","CE2375",3,null,"Not Ready",null,null,null,null,null,null,null,null,null,{"$f":"G30<>\"\"","v":false},{"$f":"TotalCreditsTaken>=AQ59","v":false},false,null,null,{"$f":"ROW(A30)","v":30},null,null,null,null,null,null,null,null,null,null,null,null,null,null,null,null,null,null,null,62]
[35,"POLS","2310+","Introduction to Politics",null,3,null,"Can Take","✓",null,null,null,null,null,null,null,null,null,{"$f":"TotalCreditsTaken>=AQ60","v":true},true]
[]
[null,"SENIOR YEAR"]
[null,"1st Semester",null,null,null,null,null,null,null,"Critical",null,null,null,"Prereq Flag","Avail"]
[null,"Course",null,null,"Prerequisites","Hours","Grade","Status","✓","Path",null,null,null,null,"F","S","Su"]
[36,"CE",4188,"Senior Design I",null,1,null,"Not Ready",null,null,null,"✢",null,null,null,null,null,null,{"$f":"TotalCreditsTaken>=AQ65","v":false},{"$f":"AND(R65,S65)","v":false},{"$f":"SUM(F65:F70)","v":16},null,null,null,null,null,null,null,null,null,null,null,null,null,null,null,null,null,null,null,null,null,75]
[37,"CE",4340,"Transportation Engineering","CE1313 and (CE2373 or IE3373)",3,null,"Not Ready",null,null,null,null,null,null,null,null,null,{"$f":"AND(G22<>\"\",G47<>\"\")","v":false},{"$f":"TotalCreditsTaken>=AQ66","v":false},false,null,null,{"$f":"ROW(A22)","v":22},{"$f":"ROW(A47)","v":47},null,null,null,null,null,null,null,null,null,null,null,null,null,null,null,null,null,null,75]
[38,"CE",4339,"Geostructural Design","CE3348",3,null,"Not Ready",null,null,"⦿",null,null,null,null,null,null,{"$f":"G56<>\"\"","v":false},false,false,null,null,{"$f":"ROW(A56)","v":56},null,null,null,null,null,null,null,null,null,null,null,null,null,null,null,null,null,null,null,75]
[39,"CE",4375,"Advanced Topics in Civil Engineering",null,3,null,"Not Ready",null,null,null,null,null,null,null,null,null,null,false,false,null,null,null,null,null,null,null,null,null,null,null,null,null,null,null,null,null,null,null,null,null,null,75]
[40,"POLS","2311+","American Government and Politics","POLS2310",3,null,"Not Ready",null,null,null,null,null,null,null,null,null,{"$f":"G60<>\"\"","v":false},true,false,null,null,{"$f":"ROW(A60)","v":60}]
[41,null,null,"Creative Arts Elective+","See electives prerequisites",3,null,"Can Take",null,null,null,null,null,null,null,null,null,null,true,true]
[]
[null,"2nd  Semester",null,null,null,null,null,null,null,"Critical",null,null,null,"Prereq Flag","Avail"]
[null,"Course",null,null,"Prerequisites","Hours","Grade","Status","✓","Path",null,null,null,null,"F","S","Su"]
[42,"CE",4288,"Senior Design II","CE4188",2,null,"Not Ready",null,null,null,"✢",null,null,null,null,null,{"$f":"G65<>\"\"","v":false},{"$f":"TotalCreditsTaken>=AQ74","v":false},{"$f":"AND(R74,S74)","v":false},{"$f":"SUM(F74:F77)","v":11},null,{"$f":"ROW(A65)","v":65},null,null,null,null,null,null,null,null,null,null,null,null,null,null,null,null,null,null,null,84]
[43,"CE",4376,"Advanced Topics in Civil Engineering II",null,3,null,"Not Ready",null,null,null,null,null,null,null,null,null,null,{"$f":"TotalCreditsTaken>=AQ75","v":false},false,null,null,null,null,null,null,null,null,null,null,null,null,null,null,null,null,null,null,null,null,null,null,84]
[44,null,null,"General Elective","See electives prerequisites",3,null,"Not Ready",null,null,null,null,null,null,null,null,null,null,{"$f":"TotalCreditsTaken>=AQ76","v":false},false,null,null,null,null,null,null,null,null,null,null,null,null,null,null,null,null,null,null,null,null,null,null,84]
[45,null,null,"Language Philosophy & Culture Elective+","See electives prerequisites",3,null,"Can Take",null,null,null,null,null,null,null,null,null,null,{"$f":"TotalCreditsTaken>=AQ77","v":true},true]
[]
[null,"+","Requires a grade of C or better",null,"Total Credits",{"$f":"SUM(INDIRECT(F83):INDIRECT(F84))","v":128}]
[null,null,null,null,"Passed Credits",{"$f":"SUMIF(INDIRECT(G83):INDIRECT(G84),\"<>\",(INDIRECT(F83):INDIRECT(F84)))","v":0}]
[]
[]
[null,null,null,null,null,{"$f":"ADDRESS(MATCH(1,A:A,0),COLUMN(),4)","v":"F9"},{"$f":"ADDRESS(MATCH(1,A:A,0),COLUMN(),4)","v":"G9"}]
[null,null,null,null,null,{"$f":"ADDRESS(MATCH(256,A:A,1),COLUMN(),4)","v":"F77"},{"$f":"ADDRESS(MATCH(256,A:A,1),COLUMN(),4)","v":"G77"}]

{"sheet":"Recommendations","index":1,"n_rows":5,"n_cols":3,"rows_kept":5,"cut":false,"hidden":false,"merged":[]}
["Priority","Course","Justification"]
[1,"RWS1301 Rhetoric and Composition I","Is a prerequisite for other courses"]
[2,"HIST1301 History of US to 1865","Is a prerequisite for other courses"]
[3,"UNV1301 Foundation of Engineering","Don't leave behind"]
[4,"POLS2310 Introduction to Politics","Is a prerequisite for other courses"]

{"sheet":"Instructions","index":2,"n_rows":1,"n_cols":1,"rows_kept":1,"cut":false,"hidden":false,"merged":[[0,0,52,9]]}
["It is very important that you “Enable Macros” when you open this worksheet for the tool to work.  Follow the appropriate documentation based on the Excel version and operating system in your computer.\n\nThe purpose of this Excel sheet is to help you determine which classes you need or can take during the next academic period.  This is not an official document.\n\nAll boxes that require your input are highlighted in light gray.  Enter your Name and ID at the top of the page. On the row below enter the period you are registering for and the number of credits you want to take.  For Freshman students it is important that you select your Calculus Ready Status from the list since it will define the courses you can take during your first semester.\n\nBefore the next registration period starts, in the “Grades” column enter the grades for all the courses you have taken and obtained a passing grade.  These should include courses previously taken and courses that have officially been transferred from other institutions.  Because the registration period usually starts in the middle of a semester, for courses you are currently taking enter the passing grades you expect to obtain in them.  For the elective courses you first must select which course you have taken before entering the grade.  It is very important that for all the electives you register in the “allowed” courses since they are the only ones that count towards your degree.\n\nAs you enter these grades, the “Status” column will indicate which courses you have been “Credited” for, which courses you “Can Take” in the following academic period and which courses you are “Not Ready” to take because you have not satisfied all the requirements.  The courses you can register for are those labeled as “Can Take” and are highlighted in varied shades of green.  It is highly recommended that the courses you take next be selected from the top of these courses and are highlighted in dark green.\n\nThe column next to the “Status” column will show a green checkbox “ü” on the courses the tool is recommending you take.  This recommendation is based on which courses are in critical paths, which are prerequisites to others, which courses are being offered during the period you selected and the number of credits you want to take.  More information for each course about prerequisites, critical paths and when courses are offered can be found in the “Prereq. Flag”, “Critical Path” and “Available” columns respectively which are described below.  It is highly re commended that you follow this recommendation as close as possible to smoothly move through the degree plan and graduate on time.  You can click on the green button showing the actual number of credits being recommended to get the list of courses as well as a justification for the recommendation.  The recommendation is also saved to the “Recommendations” worksheet.\n\nThe “Prereq. Flag” column highlights the prerequisites for the course currently being selected.  Courses prior to the current one that are highlighted in red are the prerequisite courses you have not taken and in green the ones you have already taken and obtained a passing grade.  Those courses highlighted with a dashed pattern are part of a list of “either-or” courses.  If the “Prereq. Flag” in the row for the currently selected course is highlighted either in green or red it indicates if the required number of credits have been accumulated or not.  In this case the required number of credits will also be shown together with the actual accumulated number of credits.  Courses that are corequisites to the current course will be highlighted in purple with a dashed pattern. For courses after the one selected, the “Prereq. Flag” column will highlight those courses for which the current course is a prerequisite.  These courses will be highlighted in green if they satisfy all prerequisites and can be taken and in red if they cannot be taken yet. \n\nThe “Critical Path” columns identify courses that are very important for you to keep an eye on.  The list of courses in each of these columns are important because each of them is a prerequisite for the following course in the list or because they have special scheduling requirements.  When you select a course that is a member of one of these critical paths, the entire list of courses will be highlighted in yellow to remind you of the importance of those courses.\n\nThe “Available” column indicates in green or red the period each course is or is not being offered in the “F (fall)”, “S (spring)” and “S (summer).”  The information provided in this column is only for the courses offered by the Department of Civil Engineering.  Online courses offered on a “Carrousel” schedule will have a link to the yearly schedule. For other courses consult the appropriate department’s schedule.  Also note that courses offered in the summer vary depending on the availability of resources. Check in Goldmine for the actual summer courses being offered.\n\nIf you do not obtain the grades you were expecting for the courses you were taking at the time of registration, make sure to update the worksheet and add/drop courses from your class schedule if needed.\n"]

{"sheet":"Lists","index":3,"n_rows":17,"n_cols":10,"rows_kept":17,"cut":false,"hidden":true,"merged":[]}
["Grades1","Grades2","CalculusReadyStatus","COMM","ART","Humanities","Dynamics Elective","Science Elective","General Elective","Periods"]
[null,null,"Ready to Take Calculus I",null,null,null,null,null,null,"Fall"]
["A","A","Will Take Precalculus Next Period","COMM 1301       Public Speaking","ART 1300 Art Appreciation","CHIC 2302 Latina/o Presence in the U.S.","CE 2338+ Mechanics II (Dynamics)","MATH 3323 Matrix Algebra","CE 4377 Adv. Topics in Civil Engr. III","Spring"]
["B","B","Not Ready to Take Calculus I","COMM 1302       Business and Professional Communication","ARTH 1305 History of Art I","ENGL 2311 English Literature  ","PHYS 3331 Thermal Physics","PHYS 2421+ Fields and Waves (PHYS2321 & 2121)","POLS 3350 Introduction to Public Administration I","Summer"]
["C","C",null,null,"ARTH 1306 History of Art II","ENGL 2312 English Literature  ",null,"CHEM 1306+ General Chemistry","POLS 3351 Public Policy Process"]
["D","S",null,null,"DANC 1304 Dance Appreciation","ENGL 2313 Intro. to America Fiction  ",null,"BIOL 1305+ General Biology","POLS 4359 Urban Planning"]
["S","TA",null,null,"FILM 1390 Intro-Art of Motion Pict.","ENGL 2314 Intro. to America Drama ",null,null,"RWS 3359 Technical Writing"]
["TA","TB",null,null,"MUSL 1324 Music Appreciation","ENGL 2318 Intro. to American Poetry  ",null,null,"ACCT 2301+ Principles of Accounting I"]
["TB","TC",null,null,"MUSL 1327 Jazz to Rock","FREN 2322 The Making of the \"Other\" Americas ",null,null,"MATH 3323 Matrix Algebra (if not already taken as science elective)"]
["TC",null,null,null,"MUSL 2321 Music, Culture and Society","HIST 2301 World History to 1500  ",null,null,"CHEM 1306+ General Chemistry (if not already taken as science elective)"]
["TD",null,null,null,"THEA 1313 Introduction to Theatre","HIST 2302 World History since 1500  "]
[null,null,null,null,null,"PHIL 1301 Introduction to Philosophy  "]
[null,null,null,null,null,"PHIL 2306 Ethics  "]
[null,null,null,null,null,"RS 1301 Introduction to Religious Studies  "]
[null,null,null,null,null,"SPAN 2340 Seeing and Naming: Conversations "]
[null,null,null,null,null,"WS 2300 Intro. to Women's Studies  "]
[null,null,null,null,null,"WS 2350 Global Feminism  "]